Cogmind - Beta 13 @@@ ROGUE MODE // 2024.04.11 @ 12:23:47 Player: Astrozal Result: Destroyed by Y-45 Defender with Heavy Assault Rifle Performance ------------- Evolutions (1) 500 Regions Visited (2) 400 Robots Destroyed (24) 120 Value Destroyed (768) 768 Prototype IDs (1) 20 Alien Tech Used (0) 0 Bonus (0) 0 TOTAL SCORE: 1808 Bonus ------- None Cogmind --------- Core Integrity 0/400 Matter 394/400 Energy 263/265 System Corruption 0% Temperature Cool (27) Movement Treading (160) Location -9/Materials Parts ------- > --- POWER (1) -------- Improved Ion Engine > --- PROPULSION (2) --- Light Treads Light Treads > --- UTILITY (4) ------ Medium Storage Unit Medium Matter Pod Light Armor Plating High-powered Tractor Beam > --- WEAPON (2) ------- Heavy Assault Rifle Improved Assault Rifle > --- INVENTORY (10) --- Ion Engine Light Ion Engine Light Ion Engine Aluminum Leg Wheel Medium Storage Unit Small Laser Mining Laser Peak State ------------ > --- POWER ------------ Improved Ion Engine > --- PROPULSION ------- Light Treads Light Treads > --- UTILITY ---------- Medium Storage Unit Medium Matter Pod Light Armor Plating High-powered Tractor Beam > --- WEAPON ----------- Heavy Assault Rifle Improved Assault Rifle > --- INVENTORY -------- Ion Engine Light Ion Engine Light Ion Engine Wheel Medium Storage Unit Small Laser Mining Laser [Rating: 14] Favorites ----------- Power Light Ion Engine Engine Light Ion Engine Power Core Light Nuclear Core Propulsion Light Treads Treads Light Treads Leg Aluminum Leg Wheel Wheel Utility Medium Storage Unit Device High-powered Tractor Beam Storage Medium Storage Unit Protection Light Armor Plating Weapon Light Assault Rifle Energy Gun Small Laser Ballistic Gun Light Assault Rifle Special Weapon Mining Laser Build | -11 -10 -9 ------- Run | Yrd Mat Mat Slots Evolved 2 | . . 2 Power . | . . . Propulsion . | . . . Utility 2 | . . 2 Weapon . | . . . Parts Attached 40 | 6 8 26 Power 7 | 1 1 5 Engine 6 | 1 1 4 Core 1 | . . 1 Reactor . | . . . Propulsion 10 | 2 1 7 Treads 4 | 2 . 2 Leg 5 | . . 5 Wheel 1 | . 1 . Hover . | . . . Flight . | . . . Utility 7 | 1 2 4 Device 1 | . . 1 Storage 5 | 1 2 2 Processor . | . . . Hackware . | . . . Protection 1 | . . 1 Artifact . | . . . Weapon 16 | 2 4 10 Energy Gun 7 | 1 1 5 Energy Cannon . | . . . Ballistic Gun 8 | 1 2 5 Ballistic Cannon . | . . . Launcher . | . . . Special Weapon 1 | . 1 . Impact Weapon . | . . . Slashing Weapon . | . . . Piercing Weapon . | . . . Special Melee Weapon . | . . . Unidentified Prototypes 1 | . . 1 Parts Lost 15 | . 3 12 Power 3 | . 1 2 Propulsion 5 | . 1 4 Utility . | . . . Weapon 7 | . 1 6 Highest Loss Streak 9 | . 3 9 To Critical Strikes . | . . . Average Slot Usage (%) 89 | . 96 85 Engine 10 | . 14 7 Core 1 | . . 2 Treads 14 | . 27 6 Leg 9 | . . 14 Device 1 | . . 1 Storage 26 | . 24 27 Protection 1 | . . 2 Energy Gun 5 | . 4 7 Ballistic Gun 17 | . 22 13 Naked Turns . | . . . Heaviest Build 38 | 10 19 38 Greatest Support 40 | 40 40 40 Greatest Overweight (x) 7 | . 1 7 Average Overweight (x) . | . . . Largest Inventory Capacity 10 | 8 10 10 Average Capacity 9 | 7 9 10 Most Carried 10 | 5 9 10 Average Carried 7 | 2 6 7 Final Capacity 10 | 8 10 10 Final Carried 8 | 5 6 8 Class Distribution -------------------- 82% | Mutant 17% | Scavenger-Mutant Dominant Class ---------------- Mutant | -10/Materials Mutant | -9/Materials Resources | -11 -10 -9 ----------- Run | Yrd Mat Mat Matter Collected 859 | 193 75 591 Remotely 125 | . . 125 Salvage Created 960 | . 106 854 Parts 49 | . 7 42 Haulers Intercepted . | . . . Recyclers Shooed . | . . . Parts Field Recycled . | . . . Retrieved Matter . | . . . Parts Self-Destructed . | . . . Prevented . | . . . Kills | -11 -10 -9 ------- Run | Yrd Mat Mat Combat Hostiles Destroyed 24 | . 4 20 Guns 24 | . 4 20 Classes Destroyed 3 | . 2 1 Swarmer 5 | . 2 3 Grunt 16 | . 2 14 Sentry 3 | . . 3 Best Kill Streak 4 | . 2 4 Combat Bots Only 4 | . 2 4 Max Kills in Single Turn 1 | . 1 1 Gunslinging . | . . . Exploded . | . . . Melee . | . . . Uniques/NPCs Destroyed . | . . . Combat | -11 -10 -9 -------- Run | Yrd Mat Mat Hostile Shots Fired 256 | . 85 171 Missed 52 | . 18 34 Damage Taken 2562 | . 763 1799 Core 567 | . 157 410 Absorbed by Shields . | . . . Core Remaining (%) 68 | 100 37 . Volleys Fired 90 | . 16 74 Largest 2 | . 2 2 Hottest 120 | . 120 80 Shots Fired 171 | . 32 139 Gun 170 | . 31 139 Cannon . | . . . Launcher . | . . . Special 1 | . 1 . Kinetic 124 | . 28 96 Thermal 47 | . 4 43 Explosive . | . . . Electromagnetic . | . . . Robot Hit Streak 19 | . 5 19 Robot Miss Streak 3 | . 1 3 Penetration Max . | . . . Secondary Targets 5 | . 1 4 Max Gunslinging Chain 1 | . 1 1 Shots Hit Robots 125 | . 22 103 Core Hits 56 | . 13 43 Critical Kills . | . . . Critical Parts Destroyed 1 | . . 1 Critical Strikes 1 | . . 1 Destroy 1 | . . 1 Melee Attacks . | . . . Impact . | . . . Slashing . | . . . Piercing . | . . . Sneak Attacks . | . . . Combat Hostiles . | . . . Follow-up Attacks . | . . . Damage Inflicted 1400 | . 197 1203 Guns 1394 | . 197 1197 Cannons . | . . . Explosions . | . . . Melee . | . . . Ramming 6 | . . 6 Kinetic 1021 | . 175 846 Thermal 373 | . 22 351 Explosive . | . . . Electromagnetic . | . . . Impact . | . . . Slashing . | . . . Piercing . | . . . Highest Corruption . | . . . Average Corruption . | . . . Corruption Purged . | . . . Corruption Blocked . | . . . Overload Shots . | . . . Overflow Damage . | . . . Projectiles . | . . . Explosions . | . . . Melee . | . . . Knockbacks . | . . . Impact . | . . . Kinetic . | . . . Secondary . | . . . Self-Inflicted Damage . | . . . Shots . | . . . Rammed 1 | . . 1 Targets Rammed 1 | . . 1 Kicked . | . . . Crushed . | . . . Highest Temperature 110 | . 110 73 Average Temperature 24 | . 34 20 Received Heat Transfer 1146 | . 309 837 Siege Activations . | . . . Robots Corrupted . | . . . Combat Hostiles . | . . . Parts Fried . | . . . Impact Corruptions . | . . . Robots Melted . | . . . Combat Hostiles . | . . . Parts Melted 1 | . . 1 Heat Transferred 850 | . 50 800 Parts Sabotaged . | . . . Parts Stolen . | . . . Parts Stripped . | . . . Power Chain Reactions . | . . . Alert | -11 -10 -9 ------- Run | Yrd Mat Mat Peak Influence 242 | . 72 242 Initial 16 | . . 16 Average 75 | . 23 118 Maximum Alert Level 1 | . . 1 Low Security (%) 92 | 100 100 86 Level 1 7 | . . 13 Level 2 . | . . . Level 3 . | . . . Level 4 . | . . . Level 5 . | . . . High Security . | . . . Max Security . | . . . Squads Dispatched 1 | . 1 . Investigation . | . . . Extermination . | . . . Reinforcement 1 | . 1 . Assault . | . . . Garrison . | . . . Intercept . | . . . Searches Triggered . | . . . Construction Impeded . | . . . Haulers Reinforced . | . . . Active Scanning Responses . | . . . Cargo Convoy Interrupts . | . . . Stealth | -11 -10 -9 --------- Run | Yrd Mat Mat Distress Signals 3 | . 1 2 Communications Jammed . | . . . Distress Signals . | . . . Times Spotted 44 | . 16 28 Peak Tracking Total 7 | . 7 5 Tactical Retreats 2 | . 1 1 Traps | -11 -10 -9 ------- Run | Yrd Mat Mat Traps Triggered . | . . . Indirectly . | . . . Trap Hack Attempts . | . . . Triggered . | . . . Disarmed . | . . . Reprogrammed . | . . . Reused . | . . . Traps Extracted . | . . . Installed . | . . . Triggered . | . . . Machines | -11 -10 -9 ---------- Run | Yrd Mat Mat Machines Disabled . | . . . Max in Single Turn . | . . . Machines Repaired . | . . . Machines Dismantled . | . . . Machines Sabotaged . | . . . Overloaded Fab Kills . | . . . Hacking | -11 -10 -9 --------- Run | Yrd Mat Mat Machines Accessed 4 | . 2 2 Terminals 3 | . 2 1 Fabricators . | . . . Repair Stations . | . . . Recycling Units 1 | . . 1 Scanalyzers . | . . . Garrison Access . | . . . Total Hacks 10 | . 4 6 Successful 4 | . 3 1 Failed 6 | . 1 5 Catastrophic 2 | . 1 1 Database Lockouts . | . . . Manual 2 | . 1 1 Terminals 6 | . 4 2 Fabricators . | . . . Repair Stations . | . . . Recycling Units 4 | . . 4 Scanalyzers . | . . . Garrison Access . | . . . Terminal Hacks 2 | . 2 . Hauler Manifests 1 | . 1 . Registered Components 1 | . 1 . Fabricator Hacks . | . . . Repair Station Hacks . | . . . Recycling Unit Hacks 1 | . . 1 Report Inventory 1 | . . 1 Scanalyzer . | . . . Garrison Access Hacks . | . . . Unauthorized Hacks 1 | . 1 . Terminals 1 | . 1 . Botnet 1 | . 1 . Fabricators . | . . . Repair Stations . | . . . Recycling Units . | . . . Scanalyzers . | . . . Garrison Access . | . . . Data Cores Recovered . | . . . Used . | . . . Hacking Detections 3 | . 1 2 Full Trace Events . | . . . Feedback Events . | . . . Feedback Blocked . | . . . Robot Schematics Acquired . | . . . Robots Built . | . . . Authchips . | . . . Time . | . . . Total Robot Build Rating . | . . . Part Schematics Acquired . | . . . Parts Built . | . . . Authchips . | . . . Time . | . . . Total Part Build Rating . | . . . Parts Repaired . | . . . Time . | . . . Parts Recycled . | . . . Recycled Matter . | . . . Retrieved Matter . | . . . Retrieved Components . | . . . Parts Scanalyzed . | . . . Part Schematics Acquired . | . . . Parts Damaged . | . . . Bothacking | -11 -10 -9 ------------ Run | Yrd Mat Mat Used RIF Installer . | . . . Robots Hacked . | . . . Non-combat . | . . . Combat . | . . . Robot Hacks Applied . | . . . Relay Couplers Released . | . . . Fabnet Peak Effective % . | . . . Robots Rewired . | . . . Allies Hacked . | . . . Hacks Repelled . | . . . Allies | -11 -10 -9 -------- Run | Yrd Mat Mat Total Allies . | . . . Largest Group . | . . . Highest-Rated Group . | . . . Highest-Rated Ally . | . . . Total Orders . | . . . Ally Attacks . | . . . Total Damage . | . . . Kills . | . . . Allies Corrupted . | . . . Allies Melted . | . . . Intel | -11 -10 -9 ------- Run | Yrd Mat Mat Robot Analysis Total . | . . . Derelict Logs Recovered . | . . . Drone Launches . | . . . Drone Recoveries . | . . . Exploration | -11 -10 -9 ------------- Run | Yrd Mat Mat Turns Passed 1443 | 114 520 809 Spaces Moved 662 | 76 287 299 Core 29 | 28 . 1 Treads 401 | 48 264 89 Legs 209 | . . 209 Wheels 23 | . 23 . Hover . | . . . Flight . | . . . Fastest Speed 50 | 50 95 120 Average Speed 155 | 119 154 164 Slowest Speed 400 | 160 160 400 Overloaded Moves . | . . . Propulsion Burnouts . | . . . Robots Hopped . | . . . Cave-ins Triggered . | . . . Exploration Rate (%) 22 | 4 44 19 Regions Visited 2 Branch Regions . Pre-discovered Areas . | . . . Known Exits Taken . | . . . Unknown Exits Taken 2 | 1 1 . Scrap Searched . | . . . Spaces Dug 1 | . 1 . Terrain Destroyed 1 | . 1 . Melee . | . . . Projectile 1 | . 1 . AOE . | . . . Terrain Rammed . | . . . Walls Destroyed . | . . . Machines Disabled . | . . . Actions | -11 -10 -9 --------- Run | Yrd Mat Mat Total 915 | 96 332 487 Wait 92 | 10 19 63 Move 660 | 75 286 299 Hop . | . . . Pick Up 20 | 5 2 13 Fast Attach 13 | 6 2 5 Attach 16 | . 3 13 Detach 5 | . 1 4 Swap 11 | . 3 8 Drop 5 | . . 5 Fire 90 | . 16 74 Melee . | . . . Ram . | . . . Kick . | . . . Crush 1 | . . 1 Escape Stasis . | . . . Rewire 2 | . . 2 Trap . | . . . Miscellaneous . | . . . Route ------- -11/Scrapyard -10/Materials (discovered 2 exits: *Mat / [*Min]) -9/Materials History --------- Turn | Location | Event 43 | -11/Scrapyard | Discovered new exit (range 15) 115 | -11/Scrapyard | Entered Materials 302 | -10/Materials | Build established: Mutant 389 | -10/Materials | Discovered new exit (range 11) 506 | -10/Materials | Discovered new exit (range 12) 622 | -10/Materials | Core integrity fell below 50% 635 | -10/Materials | Entered another Materials area 635 | -9/Materials | Evolved 2 slots: Utility x2 641 | -9/Materials | Lost 3 parts (1p1n1w) 874 | -9/Materials | Lost 3 parts (1p2w) 1165 | -9/Materials | Core integrity fell below 50% 1204 | -9/Materials | Core integrity fell below 20% 1240 | -9/Materials | Lost 9 parts (1p4n4w) 1444 | -9/Materials | Destroyed by Y-45 Defender with Heavy Assault Rifle Last Messages --------------- 01313_ U-05 Engineer builds a Door. 01336_ G-34 Mercenary destroyed. 01340_ Acquired 12 matter. 01344_ Acquired Aluminum Leg. 01347_ Attempting to rewire U-05 Engineer. 01347_ U-05 Engineer is broken beyond repair. 01364_ R-06 Scavenger collects Heat Sink. 01367_ R-06 Scavenger collects Sml. Laser. 01368_ Acquired 6 matter. 01370_ G-34 Mercenary destroyed. 01371_ Acquired 6 matter. 01375_ R-06 Scavenger collects Aluminum Leg. 01378_ K-01 Serf collects debris. 01382_ R-06 Scavenger collects Heat Sink. 01436_ Acquired 6 matter. 01438_ Destroyed Heat Sink. 01439_ Acquired 3 matter. 01441_ U-05 Engineer destroyed. 01442_ Acquired 6 matter. 01444_ Critical hit (Burn: +37). Map ----- +----------------------------------------------------+ | | | | | | | | | | | | | | | | | | | | | ?????????????????????????????????????????????????? | | ???????????????????????#######???????????????????? | | ???????????????????????# #???????????????????? | | ???????????????????????# #####???????????????? | | ???????????????????????# #???????????????? | | ???????????????????????# ### #???????????????? | | ???????????????????????# #?# #???????????????? | | ???????????????????????### ###?# #???????????????? | | ??????????????????##/ ### #???# #???????????????? | | ????????????????# #???# #???????????????? | | ??????????????????## ### #???# #???????????????? | | ?????????????????????????# #???# #???????????????? | | ?????????????????????????# #???# #???????????????? | | ?????????????????????????# #???# #???????????????? | | ????????????????????????##Y##### #???????????????? | | ????????????????????????#@ %=# #???????????????? | | ????????????????????????# # #???????????????? | | ????????????????????????# k # #???????????????? | | ????????????????????????#| # ####????????????? | | ????????????????????????# %+% #????????????? | | ????????????????????????# a# #????????????? | | ????????????????????????######## #????????????? | | ????????????????? / #????????????? | | ????????????????????????########### #????????????? | | ????????????????????????????# # ## ##??????? | | ????????????????????????????# """ / | | ????????????????????????????# """ # ## ##??????? | | ????????????????????????????# """ #!#??##????????? | | ????????????????????????????# # #????????????? | | ????????????????????????????####+##%#????????????? | | ???????????????????????????????# *%!#????????????? | | ???????????????????????????????# !! #????????????? | | ???????????????????????????????# ####????????????? | | ???????????????????????????????# #???????????????? | | ???????????????????????????????# #???????????????? | | ???????????????????????????????# #???????????????? | | ???????????????????????????????# #???????????????? | | ???????????????????????????????# #???????????????? | | ???????????????????????????????# #???????????????? | | ???????????????????????????????# #???????????????? | +----------------------------------------------------+ Best States ------------- Heat Dissipation 28 Energy Generation 14 Energy Capacity 265 Matter Stores 400 Matter Capacity 400 Sight Range 16 Terrain Scan Density 10 Armor Coverage 150 Evasion (%) 55 Recoil Reduction 2 Item Schematics ----------------- None Robot Schematics ------------------ None Fabricated ------------ Nothing Alien Tech Used ----------------- None Achievements -------------- None Challenges ------------ None Game ------ Seed AutogunGuidanceCapacitor Manual? 0 Play Time 00:25:43 Cumulative 10.6 hours Start 2024.04.11 @ 11:48:50 End 2024.04.11 @ 12:23:47 Sessions 2 Manual Loads 0 Difficulty Rogue Special Mode None Game No. 22 Rogue 22 Adventurer 0 Explorer 0 Win Type - Total 0 Types 0/0/0/0/0/0/0/0/0 Lore% 7 Gallery% 15 Achievement% 15 Wizard Run 0 Options --------- Layout 1 ASCII 1 Keyboard 0 Movement Arrows Keybinds 0 Fullscreen 1 Font 16/Terminus Map View 50x40 Zoom Use 0% Tactical HUD 1 Map Filters NONE Filters NONE Steam SD RUN: 9d87f360-586c-4743-9309-de5b768d3cde